bitfinex/quotes_BTCUSD_20251207
["timestamp","ask_amount","ask_price","bid_price","bid_amount"]
[1765137105723,0.05338,91384.0,91383.0,0.00207345]
[1765137105928,0.05338,91384.0,91383.0,7.345e-05]
[1765137106254,0.01202,91384.0,91383.0,0.16542547]
[1765137106999,0.01202,91384.0,91383.0,0.15183847]
[1765137107524,0.01202,91384.0,91383.0,0.14983847]
[1765137107726,0.01202,91384.0,91379.0,0.0126043]
[1765137107727,0.01094307,91382.0,91379.0,0.00166087]
[1765137107994,0.01094307,91382.0,91379.0,0.00205576]
[1765137107995,0.58338627,91380.0,91379.0,0.00205576]
[1765137108134,0.60559025,91380.0,91379.0,0.00205576]
[1765137108335,0.63043025,91380.0,91379.0,0.00205576]
[1765137108658,0.74013531,91380.0,91379.0,0.00205576]
[1765137109259,0.63043025,91380.0,91379.0,0.00205576]
[1765137109467,0.64143025,91380.0,91379.0,0.00205576]
[1765137110038,0.64643025,91380.0,91379.0,0.00205576]
[1765137110596,0.63543025,91380.0,91379.0,0.00205576]
[1765137110976,0.64943025,91380.0,91379.0,0.00205576]
[1765137111156,0.75913531,91380.0,91379.0,0.00205576]
[1765137114942,0.62722627,91380.0,91379.0,0.00205576]
[1765137115361,0.65127627,91380.0,91379.0,0.00205576]
[1765137115578,0.66855627,91380.0,91379.0,0.00205576]
[1765137115784,0.65127627,91380.0,91379.0,0.00205576]
[1765137115980,0.61950627,91380.0,91379.0,0.00205576]
[1765137116362,0.60222627,91380.0,91379.0,0.00205576]
[1765137116624,0.61950627,91380.0,91379.0,0.00205576]
[1765137116826,0.27750627,91380.0,91379.0,0.00205576]
[1765137117004,0.28850627,91380.0,91379.0,0.00205576]
[1765137118185,0.29250627,91380.0,91379.0,0.00205576]
[1765137120875,0.25038627,91380.0,91379.0,0.00205576]
[1765137121637,0.27497627,91380.0,91379.0,0.00205576]
[1765137130833,0.25038627,91380.0,91379.0,0.00205576]
[1765137131806,0.24638627,91380.0,91379.0,0.00205576]
[1765137132604,0.21886627,91380.0,91379.0,0.00205576]
[1765137132807,0.21886627,91380.0,91379.0,0.02425974]
[1765137133012,0.22386627,91380.0,91379.0,0.02425974]
[1765137133396,0.22386627,91380.0,91379.0,0.00205576]
[1765137133597,0.22586627,91380.0,91379.0,0.00205576]
[1765137133798,0.22086627,91380.0,91379.0,0.00205576]
[1765137134012,0.21886627,91380.0,91379.0,0.00205576]
[1765137134299,0.22186627,91380.0,91379.0,0.00205576]
[1765137134471,0.22286627,91380.0,91379.0,0.00205576]
[1765137134773,0.26210627,91380.0,91379.0,0.00205576]
[1765137136892,0.23813627,91380.0,91379.0,0.00205576]
[1765137137109,0.22286627,91380.0,91379.0,0.00205576]
[1765137137623,0.004,91380.0,91379.0,0.01437576]
[1765137137774,0.004,91380.0,91379.0,0.05425576]
[1765137138442,0.003,91380.0,91379.0,0.05207974]
[1765137139005,0.003,91380.0,91379.0,0.05425576]
[1765137139422,0.01094283,91384.0,91379.0,0.2731236]
[1765137139647,0.002,91380.0,91379.0,0.28406703]
[1765137140389,0.001,91380.0,91379.0,0.28406703]
[1765137140535,0.001,91380.0,91379.0,0.30627101]
[1765137141319,0.002,91380.0,91379.0,0.30627101]
[1765137145648,0.002,91380.0,91379.0,0.84012801]
[1765137149645,0.002,91380.0,91379.0,0.81792403]
[1765137149849,0.002,91380.0,91379.0,0.84012801]
[1765137151224,0.002,91380.0,91379.0,0.61031674]
[1765137151429,0.002,91380.0,91379.0,0.02987576]
[1765137152529,0.002,91380.0,91379.0,0.01437576]
[1765137153778,0.002,91380.0,91379.0,0.02987576]
[1765137154005,0.002,91380.0,91379.0,0.22207076]
[1765137154161,0.002,91380.0,91379.0,0.16267076]
[1765137154360,0.002,91380.0,91379.0,0.05425576]
[1765137154531,0.002,91380.0,91379.0,0.02987576]
[1765137154738,0.002,91380.0,91379.0,0.01437576]
[1765137155358,0.002,91380.0,91379.0,0.23324442]
[1765137157430,0.002,91380.0,91379.0,0.2554484]
[1765137157635,0.002,91380.0,91379.0,0.2953284]
[1765137157777,0.002,91380.0,91379.0,0.07645974]
[1765137158197,0.002,91380.0,91379.0,0.05425576]
[1765137158402,0.002,91380.0,91379.0,0.02987576]
[1765137159338,0.002,91380.0,91379.0,0.00205576]
[1765137159553,0.002,91380.0,91379.0,0.22092442]
[1765137160253,0.002,91380.0,91379.0,0.00205576]
[1765137161000,0.26010627,91380.0,91379.0,0.00205576]
[1765137161141,0.23613627,91380.0,91379.0,0.00205576]
[1765137162174,0.22086627,91380.0,91379.0,0.00205576]
[1765137162580,0.002,91380.0,91379.0,0.00205576]
[1765137162787,0.002,91380.0,91379.0,0.04175576]
[1765137162988,0.002,91380.0,91379.0,0.32207429]
[1765137164350,0.002,91380.0,91379.0,0.2828284]
[1765137166065,0.002,91380.0,91379.0,0.5244474]
[1765137166264,0.002,91380.0,91379.0,0.64583404]
[1765137166472,0.002,91380.0,91379.0,0.58697039]
[1765137167010,0.002,91380.0,91379.0,0.90997039]
[1765137167825,0.01094139,91396.0,91393.0,0.01094175]
[1765137167969,0.01094139,91396.0,91394.0,0.02220398]
[1765137168329,0.01094127,91397.0,91394.0,0.03314561]
[1765137169905,0.01094103,91399.0,91394.0,0.05770561]
[1765137170752,0.01094127,91397.0,91394.0,0.04676398]
[1765137171925,0.01094127,91397.0,91394.0,0.27653807]
[1765137172424,0.01094127,91397.0,91394.0,0.03314561]
[1765137172835,0.01094103,91399.0,91396.0,0.01094139]
[1765137173970,0.01194103,91399.0,91396.0,0.01094139]
[1765137174168,0.01294103,91399.0,91396.0,0.01094139]
[1765137176206,0.002,91399.0,91397.0,0.21882556]
[1765137176379,0.22082128,91399.0,91394.0,0.03314561]
[1765137176791,0.01094115,91398.0,91395.0,0.22977179]
[1765137177120,0.01094079,91401.0,91397.0,0.01094127]
[1765137177329,0.002,91399.0,91397.0,0.21882556]
[1765137177504,0.001,91399.0,91396.0,0.01094139]
[1765137177674,0.01094103,91399.0,91396.0,0.01094139]
[1765137178334,0.01094091,91400.0,91397.0,0.01094127]
[1765137178475,0.001,91399.0,91397.0,0.22976563]
[1765137178674,0.01094079,91401.0,91397.0,0.22976563]
[1765137179320,0.01094079,91401.0,91396.0,0.01094139]
[1765137179321,0.01094091,91400.0,91396.0,0.01094139]
[1765137180056,0.01094103,91399.0,91396.0,0.01094139]
[1765137180635,0.01194103,91399.0,91396.0,0.01094139]
[1765137181047,0.01194103,91399.0,91395.0,0.01094151]
[1765137181423,0.01194103,91399.0,91394.0,0.03314561]
[1765137181424,0.01094127,91397.0,91394.0,0.02220398]
[1765137181619,0.01537969,91396.0,91394.0,0.02220398]
[1765137182022,0.01537969,91396.0,91390.0,0.07484869]
[1765137182023,0.21883992,91391.0,91390.0,0.03934658]
[1765137182224,0.21884711,91388.0,91386.0,0.03934658]
[1765137182741,0.21884711,91388.0,91385.0,0.03934658]
[1765137182742,0.2188519,91386.0,91385.0,0.03934658]
[1765137182949,0.21885669,91384.0,91383.0,0.03934658]
[1765137183097,0.21886627,91380.0,91379.0,0.00205576]
[1765137184141,0.23435627,91380.0,91379.0,0.00205576]
[1765137184342,0.25864627,91380.0,91379.0,0.00505576]
[1765137184567,0.23435627,91380.0,91379.0,0.00505576]
[1765137185218,0.01094307,91382.0,91379.0,0.00505576]
[1765137185371,0.21884232,91390.0,91386.0,0.01094259]
[1765137185691,0.01094199,91391.0,91390.0,0.02220398]
[1765137185893,0.01185,91395.0,91391.0,0.21883992]
[1765137186056,0.21883035,91395.0,91390.0,0.25198601]
[1765137186257,0.01094139,91396.0,91391.0,0.01094199]
[1765137186444,0.01094139,91396.0,91390.0,0.04697398]
[1765137186445,0.01094175,91393.0,91390.0,0.04697398]
[1765137186789,0.01094139,91396.0,91392.0,0.01094187]
[1765137186966,0.01094139,91396.0,91393.0,0.02892]
[1765137187173,0.21883035,91395.0,91393.0,0.02892]
[1765137187363,0.21883035,91395.0,91393.0,0.01238]
[1765137187562,0.01094139,91396.0,91393.0,0.01238]
[1765137188167,0.001,91395.0,91393.0,0.01238]
[1765137188577,0.22977137,91396.0,91393.0,0.01238]
[1765137188968,0.23077137,91396.0,91393.0,0.01238]
[1765137189159,0.01194139,91396.0,91393.0,0.01238]
[1765137189360,0.001,91396.0,91393.0,0.02332175]
[1765137189610,0.004,91396.0,91393.0,0.24215479]
[1765137189809,0.004,91396.0,91395.0,0.21883035]
[1765137190189,0.004,91396.0,91395.0,0.04131]
[1765137191148,0.003,91396.0,91395.0,0.04131]
[1765137191311,0.002,91396.0,91395.0,0.01654]
[1765137191895,0.02632084,91398.0,91395.0,0.01654]
[1765137192133,0.01537969,91398.0,91396.0,0.21882795]
[1765137192351,0.01537969,91398.0,91395.0,0.02748151]
[1765137192710,0.01537969,91398.0,91395.0,0.02848151]
[1765137192916,0.01537969,91398.0,91395.0,0.02748151]
[1765137193441,0.01537969,91398.0,91395.0,0.24631129]
[1765137193847,0.01781044,91404.0,91401.0,0.01094079]
[1765137194047,0.00687,91404.0,91401.0,0.01094079]
[1765137194833,0.00787,91404.0,91401.0,0.01094079]
[1765137195458,0.00787,91404.0,91401.0,0.22975441]
[1765137195737,0.01881044,91404.0,91399.0,0.01094103]
[1765137195970,0.01094055,91403.0,91400.0,0.01094091]
[1765137197077,0.01194055,91403.0,91400.0,0.01094091]
[1765137197680,0.001,91403.0,91400.0,0.22975925]
[1765137197891,0.001,91403.0,91400.0,0.01094091]
[1765137198074,0.001,91403.0,91400.0,0.03314489]
[1765137198260,0.23175366,91403.0,91400.0,0.02220398]
[1765137198602,0.01094067,91402.0,91398.0,0.03314513]
[1765137199300,0.01094079,91401.0,91398.0,0.02220398]
[1765137199510,0.01094127,91397.0,91394.0,0.02220398]
[1765137199729,0.01094127,91397.0,91391.0,0.22977953]
[1765137199730,0.03427151,91395.0,91391.0,0.26912611]
[1765137200041,0.23475753,91392.0,91391.0,0.03934658]
[1765137200245,0.23475753,91392.0,91386.0,0.03934658]
[1765137200246,0.22978694,91389.0,91386.0,0.03934658]
[1765137200396,0.21885429,91385.0,91384.0,0.03934658]
[1765137200921,0.22821429,91385.0,91384.0,0.03934658]
[1765137201268,0.00936,91385.0,91384.0,0.03934658]
[1765137201682,0.00936,91385.0,91384.0,0.04034658]
[1765137202473,0.00936,91385.0,91384.0,0.001]
[1765137202884,0.00936,91385.0,91384.0,0.002]
[1765137203512,0.26741429,91385.0,91384.0,0.001]
[1765137204698,0.26841429,91385.0,91384.0,0.001]
[1765137205251,0.21886627,91380.0,91379.0,0.00205576]
[1765137206525,0.22386627,91380.0,91379.0,0.00205576]
[1765137206738,0.23978627,91380.0,91379.0,0.00205576]
[1765137206940,0.24178627,91380.0,91379.0,0.00205576]
[1765137208380,0.26506627,91380.0,91379.0,0.00205576]
[1765137212227,0.28727025,91380.0,91379.0,0.00205576]
[1765137213726,0.26506627,91380.0,91379.0,0.00205576]
[1765137214084,0.32013412,91380.0,91379.0,0.00205576]
[1765137217014,0.29193014,91380.0,91379.0,0.00205576]
[1765137217220,0.31521014,91380.0,91379.0,0.00205576]
[1765137221561,0.33741412,91380.0,91379.0,0.00205576]
[1765137222142,0.33541412,91380.0,91379.0,0.00205576]
[1765137222455,0.33041412,91380.0,91379.0,0.00205576]
[1765137222656,0.33341412,91380.0,91379.0,0.00205576]
[1765137223726,0.33941412,91380.0,91379.0,0.00205576]
[1765137225860,0.31721014,91380.0,91379.0,0.00205576]
[1765137226045,0.29993014,91380.0,91379.0,0.00205576]
[1765137226246,0.31721014,91380.0,91379.0,0.00205576]
[1765137227419,0.31121014,91380.0,91379.0,0.00205576]
[1765137227755,0.30921014,91380.0,91379.0,0.00205576]
[1765137228265,0.31121014,91380.0,91379.0,0.00205576]
[1765137230801,0.29393014,91380.0,91379.0,0.00205576]
[1765137231031,0.31121014,91380.0,91379.0,0.00205576]
[1765137231776,0.28793014,91380.0,91379.0,0.00205576]
[1765137232390,0.31142014,91380.0,91379.0,0.00205576]
[1765137235843,0.29414014,91380.0,91379.0,0.00205576]
[1765137236673,0.26127627,91380.0,91379.0,0.00205576]
[1765137237435,0.29414032,91380.0,91379.0,0.00205576]
[1765137237887,0.26127627,91380.0,91379.0,0.00205576]
[1765137238294,0.28471627,91380.0,91379.0,0.00205576]
[1765137239257,0.23778627,91380.0,91379.0,0.00205576]
[1765137239482,0.26251627,91380.0,91379.0,0.00205576]
[1765137240292,0.22186627,91380.0,91379.0,0.00205576]
[1765137242590,0.21986627,91380.0,91379.0,0.00205576]
[1765137243216,0.21886627,91380.0,91379.0,0.00205576]
[1765137243482,0.21986627,91380.0,91379.0,0.00205576]
[1765137243917,0.21886627,91380.0,91379.0,0.00205576]
[1765137244266,0.21986627,91380.0,91379.0,0.00205576]
[1765137261524,0.21986627,91380.0,91379.0,0.02425974]
[1765137262178,0.21986627,91380.0,91379.0,0.00205576]
[1765137266848,0.21986627,91380.0,91379.0,0.01734576]
[1765137267049,0.21986627,91380.0,91379.0,0.06328974]
[1765137267936,0.21986627,91380.0,91379.0,0.03954974]
[1765137268131,0.21886627,91380.0,91379.0,0.03954974]
[1765137268416,0.21886627,91380.0,91379.0,0.00205576]
[1765137269277,0.21886627,91380.0,91379.0,0.00405576]
[1765137272895,0.22980649,91382.0,91379.0,0.00405576]
[1765137273099,0.21886627,91380.0,91379.0,0.00405576]
[1765137273416,0.2298047,91382.0,91379.0,0.00405576]
[1765137273617,0.21886577,91381.0,91379.0,0.00405576]
[1765137274043,0.21886623,91381.0,91379.0,0.00405576]
[1765137274955,0.21886623,91381.0,91379.0,0.00205576]
[1765137275406,0.01537969,91380.0,91379.0,0.00405576]
[1765137275745,0.21886623,91381.0,91379.0,0.00405576]
[1765137278344,0.01537969,91380.0,91379.0,0.00405576]
[1765137279521,0.01537969,91380.0,91379.0,0.00205576]
[1765137279985,0.01537969,91380.0,91379.0,0.00405576]
[1765137280383,0.05443969,91380.0,91379.0,0.00405576]
[1765137281178,0.05443969,91380.0,91379.0,0.00205576]
[1765137281463,0.07171969,91380.0,91379.0,0.00205576]
[1765137281988,0.08875092,91380.0,91379.0,0.00205576]
[1765137282192,0.07171969,91380.0,91379.0,0.00205576]
[1765137282373,0.08195584,91380.0,91379.0,0.00205576]
[1765137282537,0.08295584,91380.0,91379.0,0.00205576]
[1765137282736,0.08595584,91380.0,91379.0,0.00205576]
[1765137282939,0.16040039,91380.0,91379.0,0.00205576]
[1765137283160,0.44719105,91380.0,91379.0,0.00205576]
[1765137283359,0.45939693,91380.0,91379.0,0.00205576]
[1765137286180,0.43581136,91380.0,91379.0,0.00205576]
[1765137288217,0.42557521,91380.0,91379.0,0.00205576]
[1765137299009,0.40829521,91380.0,91379.0,0.00205576]
[1765137299413,0.42557521,91380.0,91379.0,0.00205576]
[1765137300889,0.02348,91380.0,91379.0,0.00205576]
[1765137301060,0.02428,91380.0,91379.0,0.00205576]
[1765137301626,0.07854969,91380.0,91379.0,0.00205576]
[1765137301832,0.07554969,91380.0,91379.0,0.00205576]
[1765137302040,0.07654969,91380.0,91379.0,0.00205576]
[1765137302761,0.05926969,91380.0,91379.0,0.00205576]
[1765137302958,0.05526969,91380.0,91379.0,0.00205576]
[1765137303361,0.05426969,91380.0,91379.0,0.00405576]
[1765137303670,0.05626969,91380.0,91379.0,0.00205576]
[1765137303899,0.05926969,91380.0,91379.0,0.00205576]
[1765137304651,0.03553969,91380.0,91379.0,0.00205576]
[1765137307412,0.005,91380.0,91379.0,0.00205576]
[1765137307626,0.02037969,91380.0,91379.0,0.00205576]
[1765137308287,0.003,91380.0,91379.0,0.00205576]
[1765137309132,0.21886623,91381.0,91379.0,0.00205576]
[1765137309463,0.001,91380.0,91379.0,0.00205576]
[1765137309681,0.01637969,91380.0,91379.0,0.00205576]
[1765137309882,0.03153969,91380.0,91379.0,0.00205576]
[1765137310181,0.03053969,91380.0,91379.0,0.00205576]
[1765137310570,0.05426969,91380.0,91379.0,0.00205576]
[1765137311131,0.05526969,91380.0,91379.0,0.00205576]
[1765137311917,0.03153969,91380.0,91379.0,0.00205576]
[1765137314626,0.05621969,91380.0,91379.0,0.00205576]
[1765137323305,0.0954549,91380.0,91379.0,0.00205576]
[1765137324285,0.0944549,91380.0,91379.0,0.00205576]
[1765137324705,0.0974549,91380.0,91379.0,0.00205576]
[1765137325104,0.1014549,91380.0,91379.0,0.00205576]
[1765137326316,0.1138349,91380.0,91379.0,0.00205576]
[1765137326717,0.12404335,91380.0,91379.0,0.00205576]
[1765137326905,0.1138349,91380.0,91379.0,0.00205576]
[1765137329197,0.12404552,91380.0,91379.0,0.00205576]
[1765137329698,0.1138349,91380.0,91379.0,0.00205576]
[1765137335418,0.09163092,91380.0,91379.0,0.00205576]
[1765137336289,0.1138349,91380.0,91379.0,0.00205576]
[1765137343801,0.07949969,91380.0,91379.0,0.00205576]
[1765137344933,0.02237969,91380.0,91379.0,0.00205576]
[1765137345147,0.007,91380.0,91379.0,0.00205576]
[1765137345733,0.004,91380.0,91379.0,0.00205576]
[1765137347159,0.01937969,91380.0,91379.0,0.00205576]
[1765137347504,0.21886623,91381.0,91379.0,0.00205576]
[1765137347826,0.21886623,91381.0,91379.0,0.00405576]
[1765137348454,0.21886623,91381.0,91379.0,0.00205576]
[1765137348865,0.21886623,91381.0,91379.0,0.00405576]
[1765137352679,0.01094295,91383.0,91380.0,0.04005]
[1765137352879,0.22980245,91383.0,91381.0,0.01225]
[1765137354465,0.23080245,91383.0,91381.0,0.01225]
[1765137354872,0.23080245,91383.0,91381.0,0.01325]
[1765137355963,0.22980245,91383.0,91381.0,0.01325]
[1765137356176,0.23080245,91383.0,91381.0,0.01325]
[1765137357033,0.23080245,91383.0,91381.0,0.001]
[1765137357237,0.01537969,91382.0,91381.0,0.001]
[1765137357440,0.05407969,91382.0,91381.0,0.001]
[1765137358003,0.05407969,91382.0,91379.0,0.00205576]
[1765137358004,0.21886387,91381.0,91379.0,0.00205576]
[1765137358205,0.03120969,91380.0,91379.0,0.00205576]
[1765137358454,0.05407969,91380.0,91379.0,0.00205576]
[1765137359863,0.03120969,91380.0,91379.0,0.00205576]
[1765137360411,0.03120969,91380.0,91379.0,0.00405576]
[1765137362159,0.05407969,91380.0,91379.0,0.00405576]
[1765137362402,0.08839092,91380.0,91379.0,0.00405576]
[1765137363009,0.07301123,91380.0,91379.0,0.00405576]
[1765137363194,0.08939092,91380.0,91379.0,0.00205576]
[1765137363552,0.09339092,91380.0,91379.0,0.00205576]
[1765137363746,0.1155949,91380.0,91379.0,0.00205576]
[1765137364192,0.1145949,91380.0,91379.0,0.00205576]
[1765137364727,0.4375949,91380.0,91379.0,0.00205576]
[1765137364928,0.42221521,91380.0,91379.0,0.00205576]
[1765137365560,0.42421521,91380.0,91379.0,0.00205576]
[1765137370388,0.43659521,91380.0,91379.0,0.00205576]
[1765137373030,0.54630027,91380.0,91379.0,0.00205576]
[1765137373430,0.55650317,91380.0,91379.0,0.00205576]
[1765137373650,0.5800101,91380.0,91379.0,0.00205576]
[1765137374446,0.5800101,91380.0,91342.0,0.01246]
[1765137374447,0.0109475,91345.0,91342.0,0.01246]
[1765137374663,0.21895253,91344.0,91342.0,0.01257849]
[1765137374865,0.0109475,91345.0,91343.0,0.127044]
[1765137375065,0.0109475,91345.0,91343.0,0.03951]
[1765137375251,0.0109475,91345.0,91344.0,0.03951]
[1765137375447,0.22989938,91345.0,91342.0,0.03605849]
[1765137375767,0.22989938,91345.0,91342.0,0.05005849]
[1765137376098,0.21895485,91344.0,91342.0,0.01557849]
[1765137376882,0.21895485,91344.0,91342.0,0.03905849]
[1765137377094,0.21895485,91344.0,91342.0,0.05005849]
[1765137377298,0.21895485,91344.0,91343.0,0.02348]
[1765137378665,0.21895485,91344.0,91343.0,0.02648]
[1765137379324,0.21895485,91344.0,91343.0,0.03648]
[1765137380192,0.21895485,91344.0,91343.0,0.03753527]
[1765137383804,0.21895485,91344.0,91343.0,0.01405527]
[1765137384950,0.01094726,91347.0,91343.0,0.02500301]
[1765137385147,0.01094738,91346.0,91343.0,0.02394774]
[1765137385860,0.01094726,91347.0,91343.0,0.25638074]
[1765137386367,0.01094726,91347.0,91343.0,0.26338074]
[1765137386720,0.01094726,91347.0,91343.0,0.24290074]
[1765137387070,0.22989493,91347.0,91344.0,0.02348]
[1765137387561,0.2189497,91346.0,91344.0,0.02348]
[1765137387971,0.22989708,91346.0,91343.0,0.01]
[1765137388321,0.22989708,91346.0,91344.0,0.003]
[1765137388772,0.22989708,91346.0,91344.0,0.013]
[1765137389172,0.22989708,91346.0,91344.0,0.003]
[1765137389369,0.22989708,91346.0,91344.0,0.01]
[1765137389754,0.0094,91355.0,91347.0,0.21894488]
[1765137390475,0.01094678,91351.0,91348.0,0.01094714]
[1765137390852,0.01537969,91359.0,91345.0,0.0172975]
[1765137390853,0.21890699,91363.0,91356.0,0.2189233]
[1765137391060,0.21890699,91363.0,91353.0,0.01094654]
[1765137391061,0.21890699,91363.0,91362.0,0.0123]
[1765137391278,0.21891178,91361.0,91360.0,0.01246]
[1765137391654,0.21891838,91359.0,91357.0,0.01246]
[1765137392354,0.22986205,91360.0,91357.0,0.01246]
[1765137392555,0.21891881,91359.0,91357.0,0.01246]
[1765137393013,0.21891881,91359.0,91357.0,0.01746]
[1765137393195,0.21891881,91359.0,91357.0,0.01246]
[1765137394167,0.21891881,91359.0,91357.0,0.001]
[1765137394572,0.21891881,91359.0,91357.0,0.006]
[1765137394858,0.21891881,91359.0,91357.0,0.001]
[1765137395092,0.21891881,91359.0,91357.0,0.006]
[1765137401627,0.04889,91358.0,91357.0,0.006]
[1765137401801,0.06588256,91358.0,91357.0,0.006]
[1765137401998,0.08291379,91358.0,91357.0,0.006]
[1765137402453,0.08291379,91358.0,91357.0,0.001]
[1765137402605,0.0109475,91345.0,91342.0,0.00011849]
[1765137402802,0.02464,91343.0,91342.0,0.00011849]
[1765137404046,0.02625287,91343.0,91342.0,0.00011849]
[1765137404227,0.05050287,91343.0,91342.0,0.00011849]
[1765137404798,0.05050287,91343.0,91342.0,0.00511849]
[1765137404799,0.00161287,91343.0,91342.0,0.00511849]
[1765137405044,0.21895253,91344.0,91342.0,0.02964849]
[1765137405198,0.21895253,91344.0,91342.0,0.00611849]
[1765137405905,0.21895253,91344.0,91342.0,0.00511849]
[1765137406109,0.21895253,91344.0,91342.0,0.00611849]
[1765137406938,0.21895253,91344.0,91342.0,0.00111849]
[1765137407502,0.21895253,91344.0,91342.0,0.00611849]
[1765137407803,0.0109475,91345.0,91342.0,0.00611849]
[1765137408002,0.22989826,91345.0,91342.0,0.00611849]
[1765137408134,0.21895452,91344.0,91342.0,0.00611849]
[1765137408667,0.21895452,91344.0,91342.0,0.00011849]
[1765137408867,0.21895452,91344.0,91342.0,0.00111849]
[1765137409069,0.21895452,91344.0,91342.0,0.00611849]
[1765137409457,0.21895452,91344.0,91342.0,0.00511849]
[1765137409655,0.21895452,91344.0,91342.0,0.00611849]
[1765137410203,0.21895452,91344.0,91342.0,0.00111849]
[1765137410391,0.21895452,91344.0,91342.0,0.00611849]
[1765137411537,0.03949,91343.0,91342.0,0.00611849]
[1765137412727,0.04110287,91343.0,91342.0,0.00611849]
[1765137412886,0.04110287,91343.0,91342.0,0.00511849]
[1765137413811,0.04110287,91343.0,91342.0,0.00011849]
[1765137414012,0.05648256,91343.0,91342.0,0.00511849]
[1765137414191,0.05648256,91343.0,91342.0,0.00620309]
[1765137414352,0.05648256,91343.0,91342.0,0.00220309]
[1765137414718,0.05648256,91343.0,91342.0,0.00420309]
[1765137414918,0.05648256,91343.0,91342.0,0.00320309]
[1765137416686,0.07868654,91343.0,91342.0,0.00320309]
[1765137416879,0.07868654,91343.0,91342.0,0.00120309]
[1765137417615,0.05648256,91343.0,91342.0,0.00220309]
[1765137417870,0.07968654,91343.0,91342.0,0.00220309]
[1765137422282,0.05938287,91343.0,91342.0,0.00220309]
[1765137422522,0.05748256,91343.0,91342.0,0.00220309]
[1765137422820,0.07476256,91343.0,91342.0,0.00220309]
[1765137423031,0.05938287,91343.0,91342.0,0.00220309]
[1765137423576,0.03513287,91343.0,91342.0,0.00220309]
[1765137423777,0.04167287,91343.0,91342.0,0.00220309]
[1765137424184,0.05895287,91343.0,91342.0,0.00220309]
[1765137424726,0.03513287,91343.0,91342.0,0.00220309]
[1765137425500,0.01785287,91343.0,91342.0,0.00220309]
[1765137425704,0.03513287,91343.0,91342.0,0.00220309]
[1765137427272,0.05051256,91343.0,91342.0,0.00220309]
[1765137427611,0.07433256,91343.0,91342.0,0.00220309]
[1765137428991,0.05895287,91343.0,91342.0,0.00220309]
[1765137429964,0.04167287,91343.0,91342.0,0.00220309]
[1765137430166,0.05895287,91343.0,91342.0,0.00220309]
[1765137431030,0.07433256,91343.0,91342.0,0.00220309]
[1765137433363,0.05895287,91343.0,91342.0,0.00220309]
[1765137439611,0.07433256,91343.0,91342.0,0.00220309]
[1765137442696,0.01799256,91343.0,91342.0,0.00220309]
[1765137442867,0.00261287,91343.0,91342.0,0.00220309]
[1765137444035,0.001,91343.0,91342.0,0.00220309]
[1765137445493,0.001,91343.0,91342.0,0.04152309]
[1765137450020,0.001,91343.0,91342.0,0.39219207]
[1765137450220,0.001,91343.0,91342.0,0.43152513]
[1765137450436,0.001,91343.0,91342.0,0.39219207]
[1765137450640,0.001,91343.0,91342.0,0.43152513]
[1765137450815,0.0109469,91350.0,91349.0,0.02220398]
[1765137451017,0.01094678,91351.0,91349.0,0.03839398]
[1765137451197,0.01094678,91351.0,91349.0,0.03927331]
[1765137451384,0.01094678,91351.0,91349.0,0.03839398]
[1765137451605,0.01094726,91347.0,91344.0,0.01094762]
[1765137451810,0.22988504,91350.0,91345.0,0.0109475]
[1765137452018,0.22988504,91350.0,91349.0,0.006]
[1765137452406,0.01094702,91349.0,91346.0,0.02219738]
[1765137452611,0.21894294,91348.0,91346.0,0.01125]
[1765137454462,0.21894294,91348.0,91346.0,0.01225]
[1765137454873,0.21894294,91348.0,91346.0,0.01825]
[1765137457864,0.01094702,91349.0,91346.0,0.01825]
[1765137458048,0.01094702,91349.0,91346.0,0.02919738]
[1765137458262,0.01094702,91349.0,91348.0,0.00090866]
[1765137459317,0.22988504,91350.0,91348.0,0.00090866]
[1765137459553,0.22988504,91350.0,91346.0,0.02319738]
[1765137459685,0.22988504,91350.0,91346.0,0.02219738]
[1765137459891,0.22988504,91350.0,91346.0,0.04632738]
[1765137460116,0.22987529,91354.0,91349.0,0.24607555]
[1765137460430,0.22987529,91354.0,91353.0,0.01125]
[1765137460631,0.22987529,91354.0,91353.0,0.02744]
[1765137460847,0.22987529,91354.0,91353.0,0.05057]
[1765137461379,0.01094523,91364.0,91361.0,0.02220398]
[1765137461576,0.01094523,91364.0,91363.0,0.02488]
[1765137462029,0.01094511,91365.0,91363.0,0.02488]
[1765137462030,0.01094511,91365.0,91363.0,0.04986]
[1765137462245,0.01094511,91365.0,91364.0,0.0157]
[1765137462447,0.01094511,91365.0,91364.0,0.04068]
[1765137462995,0.01094439,91371.0,91368.0,0.01094475]
[1765137463195,0.01094355,91378.0,91377.0,0.02220398]
[1765137463414,0.22981597,91378.0,91377.0,0.02220398]
[1765137463727,0.22981597,91378.0,91376.0,0.03371398]
[1765137463931,0.01094319,91381.0,91377.0,0.04068]
[1765137464106,0.22980958,91380.0,91379.0,0.0157]
[1765137464313,0.01133795,91380.0,91379.0,0.0157]
[1765137464524,0.01133795,91380.0,91379.0,0.04068]
[1765137464703,0.23020422,91380.0,91379.0,0.04068]
[1765137465543,0.23020422,91380.0,91379.0,0.04268]
[1765137465739,0.23020422,91380.0,91379.0,0.0177]
[1765137466605,0.01133795,91380.0,91379.0,0.04268]
[1765137466802,0.01133795,91380.0,91379.0,0.0177]
[1765137470065,0.01133795,91380.0,91379.0,0.002]
[1765137479172,0.06646051,91380.0,91379.0,0.002]
[1765137479945,0.04343051,91380.0,91379.0,0.002]
[1765137481070,0.02833051,91380.0,91379.0,0.002]
[1765137485840,0.06585051,91380.0,91379.0,0.002]
[1765137487411,0.21888543,91372.0,91371.0,0.00023443]
[1765137489098,0.21988543,91372.0,91371.0,0.00023443]
[1765137492888,0.25874543,91372.0,91371.0,0.00023443]
[1765137499503,0.21988543,91372.0,91371.0,0.00023443]
[1765137504751,0.21988543,91372.0,91371.0,0.01249443]
[1765137505144,0.001,91372.0,91371.0,0.05257443]
[1765137506335,0.001,91372.0,91371.0,0.05357443]
[1765137507346,0.01094403,91374.0,91371.0,0.06451882]
[1765137507564,0.21888024,91375.0,91374.0,0.02220398]
[1765137507771,0.21888024,91375.0,91374.0,0.03842398]
[1765137507964,0.21888024,91375.0,91374.0,0.06228398]
[1765137509164,0.01094379,91376.0,91375.0,0.02220398]
[1765137509310,0.01133795,91380.0,91378.0,0.02220398]
[1765137509520,0.01133795,91380.0,91379.0,0.02220398]
[1765137509711,0.01133795,91380.0,91379.0,0.06228398]
[1765137511551,0.00039464,91380.0,91379.0,0.06228398]
[1765137511745,0.00039464,91380.0,91379.0,0.06328398]
[1765137512324,0.00039464,91380.0,91379.0,0.06428398]
[1765137520739,0.21926091,91380.0,91379.0,0.06428398]
[1765137521035,0.21926091,91380.0,91379.0,0.002]
[1765137521917,0.00039464,91380.0,91379.0,0.002]
[1765137522216,0.00039464,91380.0,91379.0,0.04113]